[Event "FIDE Women World Blitz 2021"]
[Site "Warsaw"]
[Date "2021.12.30"]
[Round "13.6"]
[White "Kashlinskaya, Alina"]
[Black "Goryachkina, Aleksandra"]
[Result "0-1"]
[ECO "D45"]
[WhiteElo "2482"]
[BlackElo "2604"]
[Annotator "ChessBase"]
[PlyCount "79"]
[EventDate "2021.12.29"]
[EventType "swiss"]
[EventCountry "POL"]
[Tiebreak "Cut1 Buchholz"]
[SourceTitle "playchess.com"]
[Source "ChessBase"]
[SourceQuality "1"]
[TimeControl "180+2"]

1. d4 {[%emt 0:00:01]} Nf6 {[%emt 0:00:02]} 2. c4 {[%emt 0:00:01]} e6 {[%emt 0:
00:01]} 3. Nc3 {[%emt 0:00:01]} d5 {[%emt 0:00:02]} 4. Nf3 {[%emt 0:00:04]}
Nbd7 {[%emt 0:00:02]} 5. cxd5 {[%emt 0:00:03]} exd5 {[%emt 0:00:02]} 6. Bf4 {
[%emt 0:00:01]} c6 {[%emt 0:00:08]} 7. Qc2 {[%emt 0:00:01]} Nh5 {[%emt 0:00:15]
} 8. Bd2 {[%emt 0:00:01]} Bd6 {[%emt 0:00:08]} 9. e3 {[%emt 0:00:02]} Nhf6 {
[%emt 0:00:23]} 10. Bd3 {[%emt 0:00:01]} O-O {[%emt 0:00:03]} 11. h3 {[%emt 0:
00:14]} Re8 {[%emt 0:00:06]} 12. g4 {[%emt 0:00:10]} Nf8 {[%emt 0:00:08]} 13.
O-O-O {[%emt 0:00:04]} b5 {[%emt 0:00:10]} 14. g5 {[%emt 0:00:02]} Nh5 {
[%emt 0:00:04]} 15. Kb1 {[%emt 0:00:08]} a5 {[%emt 0:00:13]} 16. Ne2 {[%emt 0:
00:10]} Bd7 {[%emt 0:00:05]} 17. Nf4 {[%emt 0:00:08]} Nxf4 {[%emt 0:00:13]} 18.
exf4 {[%emt 0:00:02]} Rc8 {[%emt 0:00:18]} 19. Ne5 {[%emt 0:00:23]} Bxe5 {
[%emt 0:00:19]} 20. fxe5 {[%emt 0:00:19]} c5 {[%emt 0:00:09]} 21. dxc5 {
[%emt 0:00:03]} Rxe5 {[%emt 0:00:05]} 22. Bf4 {[%emt 0:00:13]} Re8 {[%emt 0:00:
03]} 23. Bd6 {[%emt 0:00:02]} b4 {[%emt 0:00:14]} 24. h4 {[%emt 0:00:15]} a4 {
[%emt 0:00:06]} 25. h5 {[%emt 0:00:10]} Qxg5 {[%emt 0:00:05]} 26. h6 {[%emt 0:
00:01]} g6 {[%emt 0:00:06]} 27. f4 {[%emt 0:00:15]} Qf6 {[%emt 0:00:03]} 28.
Rde1 {[%emt 0:00:25]} Rxe1+ {[%emt 0:00:12]} 29. Rxe1 {[%emt 0:00:02]} Ne6 {
[%emt 0:00:01]} 30. Be5 {[%emt 0:00:03]} Qh4 {[%emt 0:00:00]} 31. Qe2 {[%emt 0:
00:08]} Nxc5 {[%emt 0:00:09]} 32. Bc2 {[%emt 0:00:22]} Re8 {[%emt 0:00:05]} 33.
Qd2 {[%emt 0:00:03]} Be6 {[%emt 0:00:03]} 34. Rd1 {[%emt 0:00:01]} Qxh6 {
[%emt 0:00:02]} 35. Qd4 {[%emt 0:00:01]} Ne4 {[%emt 0:00:02]} 36. Qxb4 {
[%emt 0:00:04]} Qh5 {[%emt 0:00:01]} 37. Qxa4 {[%emt 0:00:01]} Rc8 {[%emt 0:00:
03]} 38. a3 {[%emt 0:00:05]} Bf5 {[%emt 0:00:02]} 39. Qa6 {[%emt 0:00:04]} Rxc2
{[%emt 0:00:03]} 40. Rxd5 {[%emt 0:00:08]} 0-1

[Event "FIDE Women World Blitz 2021"]
[Site "Warsaw"]
[Date "2021.12.30"]
[Round "13.6"]
[White "Kubicka, Anna"]
[Black "Kolaric, Spela"]
[Result "1-0"]
[ECO "C78"]
[WhiteElo "2273"]
[BlackElo "2178"]
[Annotator "NA"]
[PlyCount "86"]
[EventDate "2021.12.29"]
[EventType "swiss"]
[EventCountry "POL"]
[Tiebreak "Cut1 Buchholz"]
[SourceTitle "playchess.com"]
[Source "ChessBase"]
[SourceQuality "1"]
[TimeControl "180+2"]

1. e4 {[%emt 0:00:01]} e5 {[%emt 0:00:01]} 2. Nf3 {[%emt 0:00:01]} Nc6 {
[%emt 0:00:01]} 3. Bb5 {[%emt 0:00:01]} a6 {[%emt 0:00:00]} 4. Ba4 {[%emt 0:00:
01]} Nf6 {[%emt 0:00:02]} 5. O-O {[%emt 0:00:01]} b5 {[%emt 0:00:01]} 6. Bb3 {
[%emt 0:00:01]} Bb7 {[%emt 0:00:00]} 7. d3 {[%emt 0:00:02]} Bc5 {[%emt 0:00:03]
} 8. Nc3 {[%emt 0:00:03]} d6 {[%emt 0:00:04]} 9. Ne2 {[%emt 0:00:02]} h6 {
[%emt 0:00:08]} 10. Ng3 {[%emt 0:00:02]} Ne7 {[%emt 0:00:07]} 11. c3 {[%emt 0:
00:03]} Bb6 {[%emt 0:00:14]} 12. Qe2 {[%emt 0:00:02]} O-O {[%emt 0:00:03]} 13.
Nh4 {[%emt 0:00:09]} Bc8 {[%emt 0:00:13]} 14. Be3 {[%emt 0:00:07]} c5 {[%emt 0:
00:03]} 15. a4 {[%emt 0:00:06]} Bd7 {[%emt 0:00:06]} 16. Qf3 {[%emt 0:00:17]}
Be6 {[%emt 0:00:19]} 17. Bxe6 {[%emt 0:00:33]} fxe6 {[%emt 0:00:01]} 18. Nh5 {
[%emt 0:00:08]} Qe8 {[%emt 0:00:07]} 19. Nxf6+ {[%emt 0:00:05]} Rxf6 {[%emt 0:
00:01]} 20. Qg3 {[%emt 0:00:02]} Kh8 {[%emt 0:00:24]} 21. axb5 {[%emt 0:00:04]}
axb5 {[%emt 0:00:00]} 22. Rxa8 {[%emt 0:00:02]} Qxa8 {[%emt 0:00:01]} 23. b4 {
[%emt 0:00:06]} Qa3 {[%emt 0:00:13]} 24. bxc5 {[%emt 0:00:06]} Bxc5 {[%emt 0:
00:00]} 25. d4 {[%emt 0:00:02]} exd4 {[%emt 0:00:10]} 26. cxd4 {[%emt 0:00:01]}
Bb6 {[%emt 0:00:05]} 27. e5 {[%emt 0:00:03]} Nf5 {[%emt 0:00:12]} 28. exf6 {
[%emt 0:00:49]} Nxg3 {[%emt 0:00:02]} 29. f7 {[%emt 0:00:06]} Ne2+ {[%emt 0:00:
05]} 30. Kh1 {[%emt 0:00:02]} d5 {[%emt 0:00:08]} 31. Ng6+ {[%emt 0:00:02]} Kh7
{[%emt 0:00:00]} 32. f8=Q {[%emt 0:00:03]} Qxf8 {[%emt 0:00:03]} 33. Nxf8+ {
[%emt 0:00:02]} Kg8 {[%emt 0:00:00]} 34. Nxe6 {[%emt 0:00:01]} Kf7 {[%emt 0:00:
05]} 35. Nf4 {[%emt 0:00:01]} Nxd4 {[%emt 0:00:02]} 36. Nxd5 {[%emt 0:00:04]}
Bc5 {[%emt 0:00:07]} 37. Rc1 {[%emt 0:00:08]} Nb3 {[%emt 0:00:03]} 38. Rxc5 {
[%emt 0:00:02]} Nxc5 {[%emt 0:00:01]} 39. Bxc5 {[%emt 0:00:01]} Ke6 {[%emt 0:
00:00]} 40. Nf4+ {[%emt 0:00:03]} Kf5 {[%emt 0:00:01]} 41. g3 {[%emt 0:00:04]}
g5 {[%emt 0:00:02]} 42. Ne2 {[%emt 0:00:08]} Ke4 {[%emt 0:00:03]} 43. f4 {
[%emt 0:00:04]} Kd5 {[%emt 0:00:09]} 1-0

[Event "FIDE Women World Blitz 2021"]
[Site "Warsaw"]
[Date "2021.12.30"]
[Round "13.7"]
[White "Babiy, Olga"]
[Black "Socko, Monika"]
[Result "1-0"]
[ECO "C11"]
[WhiteElo "2179"]
[BlackElo "2393"]
[Annotator "NA"]
[PlyCount "51"]
[EventDate "2021.12.29"]
[EventType "swiss"]
[EventCountry "POL"]
[Tiebreak "Cut1 Buchholz"]
[SourceTitle "playchess.com"]
[Source "ChessBase"]
[SourceQuality "1"]
[TimeControl "180+2"]

1. d4 {[%emt 0:00:01]} e6 {[%emt 0:00:01]} 2. e4 {[%emt 0:00:04]} d5 {[%emt 0:
00:01]} 3. Nc3 {[%emt 0:00:01]} Nf6 {[%emt 0:00:02]} 4. e5 {[%emt 0:00:01]}
Nfd7 {[%emt 0:00:01]} 5. f4 {[%emt 0:00:01]} c5 {[%emt 0:00:01]} 6. Nf3 {
[%emt 0:00:01]} a6 {[%emt 0:00:01]} 7. Be3 {[%emt 0:00:03]} Qb6 {[%emt 0:00:02]
} 8. Na4 {[%emt 0:00:35]} Qa5+ {[%emt 0:00:02]} 9. Nc3 {[%emt 0:00:18]} Nc6 {
[%emt 0:00:03]} 10. Qd2 {[%emt 0:00:05]} b5 {[%emt 0:00:09]} 11. dxc5 {[%emt 0:
00:01]} Bxc5 {[%emt 0:00:01]} 12. Bxc5 {[%emt 0:00:07]} Nxc5 {[%emt 0:00:02]}
13. Bd3 {[%emt 0:00:01]} b4 {[%emt 0:00:07]} 14. Ne2 {[%emt 0:00:03]} Qb6 {
[%emt 0:00:01]} 15. Ned4 {[%emt 0:00:12]} a5 {[%emt 0:00:04]} 16. Nxc6 {
[%emt 0:00:07]} Qxc6 {[%emt 0:00:01]} 17. Nd4 {[%emt 0:00:01]} Qb6 {[%emt 0:00:
01]} 18. Qe3 {[%emt 0:00:21]} Ba6 {[%emt 0:00:36]} 19. O-O {[%emt 0:00:20]} Rc8
{[%emt 0:00:48]} 20. Nb3 {[%emt 0:00:12]} Bb7 {[%emt 0:00:33]} 21. f5 {[%emt 0:
00:12]} a4 {[%emt 0:00:09]} 22. Nd4 {[%emt 0:00:06]} O-O {[%emt 0:00:27]} 23.
f6 {[%emt 0:00:04]} Ne4 {[%emt 0:00:04]} 24. Bxe4 {[%emt 0:00:07]} dxe4 {
[%emt 0:00:01]} 25. Qg5 {[%emt 0:00:12]} Qxd4+ {[%emt 0:00:01]} 26. Kh1 {
[%emt 0:00:01]} 1-0

[Event "FIDE Women World Blitz 2021"]
[Site "Warsaw"]
[Date "2021.12.30"]
[Round "13.7"]
[White "Goraj, Barbara"]
[Black "Bartel, Marta"]
[Result "1-0"]
[ECO "B56"]
[WhiteElo "1902"]
[BlackElo "2192"]
[Annotator "NA"]
[PlyCount "169"]
[EventDate "2021.12.29"]
[EventType "swiss"]
[EventCountry "POL"]
[Tiebreak "Cut1 Buchholz"]
[SourceTitle "playchess.com"]
[Source "ChessBase"]
[SourceQuality "1"]
[TimeControl "180+2"]

1. e4 {[%emt 0:00:01]} c5 {[%emt 0:00:01]} 2. Nf3 {[%emt 0:00:01]} Nc6 {
[%emt 0:00:00]} 3. d4 {[%emt 0:00:01]} cxd4 {[%emt 0:00:01]} 4. Nxd4 {[%emt 0:
00:01]} Nf6 {[%emt 0:00:02]} 5. Nc3 {[%emt 0:00:01]} d6 {[%emt 0:00:01]} 6. f3
{[%emt 0:00:01]} e5 {[%emt 0:00:04]} 7. Nb3 {[%emt 0:00:01]} Be6 {[%emt 0:00:
05]} 8. Be3 {[%emt 0:00:02]} Be7 {[%emt 0:00:02]} 9. Qd2 {[%emt 0:00:03]} O-O {
[%emt 0:00:04]} 10. O-O-O {[%emt 0:00:02]} a5 {[%emt 0:00:06]} 11. Bb5 {
[%emt 0:00:01]} Na7 {[%emt 0:00:28]} 12. Bxa7 {[%emt 0:00:02]} Rxa7 {[%emt 0:
00:02]} 13. a4 {[%emt 0:00:01]} Ra8 {[%emt 0:00:06]} 14. Kb1 {[%emt 0:00:02]}
Nd7 {[%emt 0:00:11]} 15. Nd5 {[%emt 0:00:37]} Bg5 {[%emt 0:00:03]} 16. Qd3 {
[%emt 0:00:11]} Nc5 {[%emt 0:00:15]} 17. Nxc5 {[%emt 0:00:20]} dxc5 {[%emt 0:
00:01]} 18. c4 {[%emt 0:00:01]} f5 {[%emt 0:00:18]} 19. Qc3 {[%emt 0:00:05]}
Bf6 {[%emt 0:00:16]} 20. h3 {[%emt 0:00:25]} b6 {[%emt 0:00:08]} 21. Ka2 {
[%emt 0:00:03]} Bxd5 {[%emt 0:00:26]} 22. Rxd5 {[%emt 0:00:06]} Qe7 {[%emt 0:
00:02]} 23. Rd7 {[%emt 0:00:36]} Qe6 {[%emt 0:00:07]} 24. Rhd1 {[%emt 0:00:04]}
Rad8 {[%emt 0:00:13]} 25. Qd3 {[%emt 0:00:02]} Rxd7 {[%emt 0:00:06]} 26. Bxd7 {
[%emt 0:00:03]} Qe7 {[%emt 0:00:07]} 27. Qd5+ {[%emt 0:00:02]} Kh8 {[%emt 0:00:
02]} 28. exf5 {[%emt 0:00:19]} Rd8 {[%emt 0:00:05]} 29. Qe6 {[%emt 0:00:22]} h6
{[%emt 0:00:02]} 30. Rd5 {[%emt 0:00:12]} Kh7 {[%emt 0:00:03]} 31. Kb1 {
[%emt 0:00:08]} Kh8 {[%emt 0:00:02]} 32. Kc2 Kh7 33. Kd3 {[%emt 0:00:03]} Kh8 {
[%emt 0:00:10]} 34. Ke4 {[%emt 0:00:02]} Kh7 {[%emt 0:00:01]} 35. b3 {[%emt 0:
00:02]} Kh8 {[%emt 0:00:01]} 36. Qxe7 Bxe7 {[%emt 0:00:00]} 37. Kxe5 {[%emt 0:
00:04]} Kg8 {[%emt 0:00:07]} 38. Be6+ {[%emt 0:00:01]} Kf8 {[%emt 0:00:00]} 39.
Rxd8+ {[%emt 0:00:06]} Bxd8 {[%emt 0:00:02]} 40. Kd6 {[%emt 0:00:01]} Ke8 {
[%emt 0:00:04]} 41. Bd5 {[%emt 0:00:04]} Bf6 {[%emt 0:00:05]} 42. Kc6 {[%emt 0:
00:03]} Bd8 {[%emt 0:00:09]} 43. f4 {[%emt 0:00:02]} Ke7 {[%emt 0:00:01]} 44.
Be6 {[%emt 0:00:01]} Ke8 {[%emt 0:00:01]} 45. Kd6 {[%emt 0:00:02]} Be7+ {
[%emt 0:00:01]} 46. Kc6 {[%emt 0:00:01]} Bd8 {[%emt 0:00:01]} 47. g4 {[%emt 0:
00:00]} Ke7 {[%emt 0:00:02]} 48. g5 {[%emt 0:00:02]} Ke8 {[%emt 0:00:05]} 49.
f6 {[%emt 0:00:02]} Kf8 {[%emt 0:00:06]} 50. fxg7+ {[%emt 0:00:04]} Kxg7 {
[%emt 0:00:02]} 51. gxh6+ {[%emt 0:00:02]} Kxh6 {[%emt 0:00:02]} 52. Bg4 {
[%emt 0:00:03]} Kg6 {[%emt 0:00:03]} 53. Kd7 {[%emt 0:00:01]} Bf6 {[%emt 0:00:
02]} 54. Ke6 {[%emt 0:00:03]} Bd4 {[%emt 0:00:02]} 55. f5+ {[%emt 0:00:02]} Kg7
{[%emt 0:00:01]} 56. Bf3 {[%emt 0:00:02]} Bc3 {[%emt 0:00:01]} 57. Bg4 {
[%emt 0:00:01]} Bf6 {[%emt 0:00:01]} 58. Kd7 {[%emt 0:00:01]} Bc3 {[%emt 0:00:
04]} 59. Kc6 {[%emt 0:00:02]} Kf6 {[%emt 0:00:00]} 60. Kxb6 {[%emt 0:00:01]}
Bb4 {[%emt 0:00:04]} 61. Kc6 {[%emt 0:00:00]} Kf7 {[%emt 0:00:01]} 62. Kd5 {
[%emt 0:00:02]} Kf6 {[%emt 0:00:02]} 63. h4 {[%emt 0:00:02]} Kf7 {[%emt 0:00:
03]} 64. h5 {[%emt 0:00:03]} Kg7 {[%emt 0:00:02]} 65. Ke6 {[%emt 0:00:02]} Bc3
{[%emt 0:00:03]} 66. f6+ {[%emt 0:00:01]} Bxf6 {[%emt 0:00:03]} 67. h6+ {
[%emt 0:00:04]} Kg6 {[%emt 0:00:01]} 68. Bf5+ {[%emt 0:00:02]} Kg5 {[%emt 0:00:
01]} 69. h7 {[%emt 0:00:02]} Bd4 {[%emt 0:00:06]} 70. Kd5 {[%emt 0:00:01]} Kxf5
{[%emt 0:00:02]} 71. Kc6 {[%emt 0:00:06]} Kg6 {[%emt 0:00:02]} 72. Kb5 {
[%emt 0:00:02]} Kxh7 {[%emt 0:00:03]} 73. Kxa5 {[%emt 0:00:01]} Be5 {[%emt 0:
00:07]} 74. Kb6 {[%emt 0:00:01]} Kg7 {[%emt 0:00:02]} 75. Kxc5 {[%emt 0:00:01]}
Kf7 {[%emt 0:00:00]} 76. Kc6 {[%emt 0:00:01]} Ke8 {[%emt 0:00:01]} 77. a5 {
[%emt 0:00:01]} Kd8 {[%emt 0:00:01]} 78. Kb7 {[%emt 0:00:01]} Kd7 {[%emt 0:00:
02]} 79. a6 {[%emt 0:00:01]} Bd4 {[%emt 0:00:02]} 80. b4 {[%emt 0:00:02]} Kd6 {
[%emt 0:00:01]} 81. c5+ {[%emt 0:00:00]} Kd5 {[%emt 0:00:02]} 82. a7 {[%emt 0:
00:01]} Kc4 {[%emt 0:00:01]} 83. a8=Q {[%emt 0:00:02]} Kb5 {[%emt 0:00:01]} 84.
Qa5+ {[%emt 0:00:01]} Kc4 {[%emt 0:00:00]} 85. c6 {[%emt 0:00:01]} 1-0

[Event "FIDE Women World Blitz 2021"]
[Site "Warsaw"]
[Date "2021.12.30"]
[Round "13.8"]
[White "Girya, Olga"]
[Black "Paehtz, Elisabeth"]
[Result "1/2-1/2"]
[ECO "B07"]
[WhiteElo "2402"]
[BlackElo "2485"]
[Annotator "ChessBase"]
[PlyCount "129"]
[EventDate "2021.12.29"]
[EventType "swiss"]
[EventCountry "POL"]
[Tiebreak "Cut1 Buchholz"]
[SourceTitle "playchess.com"]
[Source "ChessBase"]
[SourceQuality "1"]
[TimeControl "180+2"]

1. d4 {[%emt 0:00:00]} d6 {[%emt 0:00:00]} 2. e4 {[%emt 0:00:02]} g6 {[%emt 0:
00:01]} 3. Nf3 {[%emt 0:00:02]} Bg7 {[%emt 0:00:01]} 4. Bd3 {[%emt 0:00:02]}
Nc6 {[%emt 0:00:03]} 5. c3 {[%emt 0:00:01]} Nf6 {[%emt 0:00:03]} 6. O-O {
[%emt 0:00:02]} O-O {[%emt 0:00:02]} 7. Re1 {[%emt 0:00:01]} e5 {[%emt 0:00:01]
} 8. h3 {[%emt 0:00:02]} Nh5 {[%emt 0:00:02]} 9. dxe5 {[%emt 0:00:10]} dxe5 {
[%emt 0:00:02]} 10. Bg5 {[%emt 0:00:11]} Qe8 {[%emt 0:00:09]} 11. Nbd2 {
[%emt 0:00:08]} Be6 {[%emt 0:00:08]} 12. Bc4 {[%emt 0:00:09]} Bxc4 {[%emt 0:00:
14]} 13. Nxc4 {[%emt 0:00:01]} Qe6 {[%emt 0:00:01]} 14. Ne3 {[%emt 0:00:06]} f6
{[%emt 0:00:18]} 15. Bh4 {[%emt 0:00:03]} Rad8 {[%emt 0:00:03]} 16. Qb3 {
[%emt 0:00:04]} Qxb3 {[%emt 0:00:06]} 17. axb3 {[%emt 0:00:01]} Nf4 {[%emt 0:
00:13]} 18. b4 {[%emt 0:00:07]} a6 {[%emt 0:00:06]} 19. Bg3 {[%emt 0:00:04]}
Ne6 {[%emt 0:00:04]} 20. Rad1 {[%emt 0:00:06]} Rxd1 {[%emt 0:00:04]} 21. Rxd1 {
[%emt 0:00:01]} Rd8 {[%emt 0:00:01]} 22. Rxd8+ {[%emt 0:00:15]} Ncxd8 {[%emt 0:
00:00]} 23. Kf1 {[%emt 0:00:20]} Nf7 {[%emt 0:00:02]} 24. Nd2 {[%emt 0:00:02]}
Bh6 {[%emt 0:00:06]} 25. Ke2 {[%emt 0:00:03]} Bxe3 {[%emt 0:00:02]} 26. Kxe3 {
[%emt 0:00:02]} Nd6 {[%emt 0:00:06]} 27. f3 {[%emt 0:00:06]} Kf7 {[%emt 0:00:
02]} 28. Kd3 {[%emt 0:00:01]} Ke7 {[%emt 0:00:14]} 29. h4 {[%emt 0:00:03]} h5 {
[%emt 0:00:04]} 30. Bh2 {[%emt 0:00:06]} Kd7 {[%emt 0:00:01]} 31. g3 {[%emt 0:
00:04]} c5 {[%emt 0:00:05]} 32. bxc5 {[%emt 0:00:07]} Nxc5+ {[%emt 0:00:02]}
33. Kc2 {[%emt 0:00:04]} b5 {[%emt 0:00:05]} 34. Bg1 {[%emt 0:00:04]} Ne6 {
[%emt 0:00:04]} 35. Nb3 {[%emt 0:00:11]} Kc6 {[%emt 0:00:03]} 36. Na5+ {
[%emt 0:00:08]} Kc7 {[%emt 0:00:01]} 37. b4 {[%emt 0:00:05]} f5 {[%emt 0:00:05]
} 38. Kd3 {[%emt 0:00:07]} fxe4+ {[%emt 0:00:15]} 39. fxe4 {[%emt 0:00:01]} Nf8
{[%emt 0:00:16]} 40. Be3 {[%emt 0:00:09]} Nd7 {[%emt 0:00:03]} 41. Bg5 {
[%emt 0:00:01]} Nf7 {[%emt 0:00:02]} 42. Be7 {[%emt 0:00:10]} Nb6 {[%emt 0:00:
01]} 43. Nb3 {[%emt 0:00:10]} Kd7 {[%emt 0:00:16]} 44. Bf8 {[%emt 0:00:02]} Na4
{[%emt 0:00:03]} 45. Nd2 {[%emt 0:00:24]} Ke6 {[%emt 0:00:02]} 46. Nf3 {
[%emt 0:00:04]} Nb2+ {[%emt 0:00:02]} 47. Kc2 {[%emt 0:00:03]} Nc4 {[%emt 0:00:
01]} 48. Kd3 {[%emt 0:00:01]} Nb2+ {[%emt 0:00:10]} 49. Kc2 {[%emt 0:00:00]}
Nc4 {[%emt 0:00:00]} 50. Kd3 {[%emt 0:00:01]} Kd7 {[%emt 0:00:10]} 51. Bc5 {
[%emt 0:00:05]} Nd8 {[%emt 0:00:06]} 52. Ng5 {[%emt 0:00:07]} Ne6 {[%emt 0:00:
02]} 53. Nxe6 Kxe6 {[%emt 0:00:01]} 54. Be3 {[%emt 0:00:06]} Nd6 {[%emt 0:00:
10]} 55. Bg5 {[%emt 0:00:01]} Nf7 {[%emt 0:00:05]} 56. Be3 {[%emt 0:00:01]} Nd6
{[%emt 0:00:02]} 57. Bg5 {[%emt 0:00:01]} Nc4 {[%emt 0:00:00]} 58. Bc1 {
[%emt 0:00:03]} a5 {[%emt 0:00:02]} 59. bxa5 Nxa5 {[%emt 0:00:01]} 60. Bg5 {
[%emt 0:00:03]} Nc4 {[%emt 0:00:00]} 61. Bh6 {[%emt 0:00:05]} Nb2+ {[%emt 0:00:
02]} 62. Kc2 {[%emt 0:00:01]} Nc4 {[%emt 0:00:01]} 63. Kd3 {[%emt 0:00:01]}
Nb2+ {[%emt 0:00:01]} 64. Kc2 {[%emt 0:00:00]} Nc4 {[%emt 0:00:01]} 65. Kd3 {
[%emt 0:00:03]} 1/2-1/2

[Event "FIDE Women World Blitz 2021"]
[Site "Warsaw"]
[Date "2021.12.30"]
[Round "13.8"]
[White "Szczotka, Klara"]
[Black "Kucharska, Honorata"]
[Result "1-0"]
[ECO "D35"]
[WhiteElo "1584"]
[BlackElo "2168"]
[Annotator "NA"]
[PlyCount "121"]
[EventDate "2021.12.29"]
[EventType "swiss"]
[EventCountry "POL"]
[Tiebreak "Cut1 Buchholz"]
[SourceTitle "playchess.com"]
[Source "ChessBase"]
[SourceQuality "1"]
[TimeControl "180+2"]

1. d4 {[%emt 0:00:00]} d5 {[%emt 0:00:00]} 2. c4 {[%emt 0:00:01]} e6 {[%emt 0:
00:01]} 3. Nc3 {[%emt 0:00:02]} Nf6 {[%emt 0:00:01]} 4. cxd5 {[%emt 0:00:02]}
exd5 {[%emt 0:00:01]} 5. Bg5 {[%emt 0:00:01]} Be7 {[%emt 0:00:01]} 6. e3 {
[%emt 0:00:01]} c6 {[%emt 0:00:01]} 7. Bd3 {[%emt 0:00:02]} O-O {[%emt 0:00:02]
} 8. Nge2 {[%emt 0:00:01]} Nbd7 {[%emt 0:00:04]} 9. O-O {[%emt 0:00:02]} Re8 {
[%emt 0:00:01]} 10. Rc1 {[%emt 0:00:12]} h6 {[%emt 0:00:01]} 11. Bh4 {[%emt 0:
00:01]} Nf8 {[%emt 0:00:02]} 12. Qd2 {[%emt 0:00:28]} Ng6 {[%emt 0:00:28]} 13.
Bg3 {[%emt 0:00:15]} Bd6 {[%emt 0:00:05]} 14. f3 {[%emt 0:00:38]} Bb4 {[%emt 0:
00:16]} 15. a3 {[%emt 0:00:08]} Ba5 {[%emt 0:00:01]} 16. b4 {[%emt 0:00:00]}
Bb6 {[%emt 0:00:03]} 17. Nf4 {[%emt 0:00:33]} Nxf4 {[%emt 0:00:05]} 18. Bxf4 {
[%emt 0:00:01]} Be6 {[%emt 0:00:03]} 19. Kh1 {[%emt 0:00:03]} a5 {[%emt 0:00:
05]} 20. b5 {[%emt 0:00:06]} c5 {[%emt 0:00:10]} 21. dxc5 {[%emt 0:00:14]} Bxc5
{[%emt 0:00:01]} 22. Na4 {[%emt 0:00:17]} Bd6 {[%emt 0:00:01]} 23. Bxd6 {
[%emt 0:00:02]} Qxd6 {[%emt 0:00:01]} 24. Nc5 {[%emt 0:00:05]} b6 {[%emt 0:00:
07]} 25. Nxe6 {[%emt 0:00:03]} Qxe6 {[%emt 0:00:02]} 26. Rfe1 {[%emt 0:00:03]}
Rac8 {[%emt 0:00:05]} 27. a4 {[%emt 0:00:10]} Qd6 {[%emt 0:00:09]} 28. Bf1 {
[%emt 0:00:04]} Qa3 {[%emt 0:00:22]} 29. Ra1 {[%emt 0:00:07]} Qd6 {[%emt 0:00:
08]} 30. Qd4 {[%emt 0:00:03]} Qc5 {[%emt 0:00:04]} 31. Rad1 {[%emt 0:00:04]}
Qxd4 {[%emt 0:00:02]} 32. Rxd4 {[%emt 0:00:01]} Rc3 {[%emt 0:00:02]} 33. e4 {
[%emt 0:00:04]} dxe4 {[%emt 0:00:03]} 34. fxe4 {[%emt 0:00:01]} Re6 {[%emt 0:
00:15]} 35. h3 {[%emt 0:00:05]} g6 {[%emt 0:00:08]} 36. Bc4 {[%emt 0:00:02]}
Re5 {[%emt 0:00:03]} 37. Bf1 {[%emt 0:00:06]} Kg7 {[%emt 0:00:01]} 38. Kg1 {
[%emt 0:00:02]} Rc2 {[%emt 0:00:12]} 39. Re2 {[%emt 0:00:04]} Rxe2 {[%emt 0:00:
01]} 40. Bxe2 {[%emt 0:00:00]} Nxe4 {[%emt 0:00:02]} 41. Bf3 {[%emt 0:00:02]}
Nc5 {[%emt 0:00:03]} 42. Bc6 {[%emt 0:00:05]} Ne6 {[%emt 0:00:06]} 43. Rd6 {
[%emt 0:00:00]} Re1+ {[%emt 0:00:02]} 44. Kf2 {[%emt 0:00:00]} Ra1 {[%emt 0:00:
01]} 45. Bd5 {[%emt 0:00:02]} Nf4 {[%emt 0:00:03]} 46. Bb3 {[%emt 0:00:03]} Ra3
{[%emt 0:00:02]} 47. Bd1 {[%emt 0:00:03]} Nd3+ {[%emt 0:00:01]} 48. Ke2 {
[%emt 0:00:02]} Nf4+ {[%emt 0:00:03]} 49. Kf2 {[%emt 0:00:02]} Rd3 {[%emt 0:00:
05]} 50. Rxd3 {[%emt 0:00:03]} Nxd3+ {[%emt 0:00:01]} 51. Ke3 {[%emt 0:00:01]}
Nb2 {[%emt 0:00:07]} 52. Bc2 {[%emt 0:00:01]} Nc4+ {[%emt 0:00:02]} 53. Kd4 {
[%emt 0:00:01]} Nd6 {[%emt 0:00:03]} 54. Kd5 {[%emt 0:00:01]} Nf5 {[%emt 0:00:
03]} 55. Bxf5 {[%emt 0:00:07]} gxf5 {[%emt 0:00:02]} 56. Kc6 {[%emt 0:00:01]}
Kf6 {[%emt 0:00:01]} 57. Kxb6 {[%emt 0:00:01]} Kg5 58. Kxa5 {[%emt 0:00:01]}
Kf4 {[%emt 0:00:01]} 59. b6 {[%emt 0:00:02]} Kg3 {[%emt 0:00:00]} 60. b7 {
[%emt 0:00:01]} Kxg2 {[%emt 0:00:02]} 61. b8=Q {[%emt 0:00:01]} 1-0